fUSD/lending_fUSD_20260129
["ID","MTS","AMOUNT","RATE_DAILY","PERIOD"]
[403978174,1769702431153,-150.0,0.00042072,30]
[403978175,1769702431208,-150.0,0.00042072,30]
[403978176,1769702431258,-231.32130108,0.00042082,30]
[403978177,1769702431308,-165.095293,0.00042082,120]
[403978178,1769702431358,-150.0,0.00042083,30]
[403978179,1769702431413,-150.0,0.00042084,30]
[403978180,1769702431463,-164.39618604,0.00042099,30]
[403978181,1769702431514,-281.5429256,0.00042099,30]
[403978182,1769702431567,-150.0,0.00042118,30]
[403978183,1769702431618,-150.0,0.00042121,30]
[403978184,1769702431668,-150.0,0.0004213,30]
[403978185,1769702431718,-150.0,0.00042139,30]
[403978186,1769702432148,-150.0,0.00042139,30]
[403978187,1769702432198,-150.0,0.00042139,30]
[403978188,1769702432245,-164.39618604,0.00042143,30]
[403978189,1769702432292,-281.5429256,0.00042143,30]
[403978190,1769702432338,-150.0,0.00042144,30]
[403978191,1769702432389,-150.0,0.00042174,30]
[403978192,1769702432438,-600.0,0.00042181,60]
[403978193,1769702432485,-500.0,0.00042181,60]
[403978194,1769702432534,-164.39618604,0.00042187,30]
[403978195,1769702432583,-281.5429256,0.00042187,30]
[403978196,1769702432628,-150.0,0.00042189,30]
[403978197,1769702432673,-150.0,0.00042196,30]
[403978198,1769702432718,-151.0,0.000422,120]
[403978199,1769702432763,-527.0,0.000422,120]
[403978200,1769702432823,-500.0,0.000422,120]
[403978201,1769702432871,-1269.24,0.000422,90]
[403978202,1769702432916,-150.0,0.00042204,30]
[403978203,1769702432962,-150.0,0.00042231,30]
[403978204,1769702433010,-150.0,0.00042231,30]
[403978205,1769702433058,-164.39618604,0.00042231,30]
[403978206,1769702433105,-281.5429256,0.00042231,30]
[403978207,1769702433153,-231.32130108,0.00042247,30]
[403978208,1769702433200,-150.0,0.00042247,30]
[403978209,1769702433247,-150.0,0.00042252,30]
[403978210,1769702433294,-150.0,0.00042264,30]
[403978211,1769702433342,-164.39618604,0.00042276,30]
[403978212,1769702433391,-281.5429256,0.00042276,30]
[403978213,1769702433443,-200.0,0.00042287,120]
[403978214,1769702433493,-150.0,0.00042288,30]
[403978215,1769702433542,-150.0,0.00042306,30]
[403978216,1769702433592,-150.0,0.00042308,30]
[403978217,1769702433641,-150.0,0.00042308,30]
[403978218,1769702433691,-164.39618604,0.0004232,30]
[403978219,1769702433740,-281.5429256,0.0004232,30]
[403978220,1769702433789,-150.0,0.00042324,30]
[403978221,1769702433836,-2086.32243521,0.00042339,120]
[403978222,1769702433884,-150.0,0.00042345,30]
[403978223,1769702433932,-150.0,0.00042364,30]
[403978224,1769702433980,-164.39618604,0.00042364,30]
[403978225,1769702434029,-281.5429256,0.00042364,30]
[403978226,1769702434077,-150.0,0.00042364,30]
[403978227,1769702434132,-150.0,0.00042364,30]
[403978228,1769702434183,-150.0,0.00042384,30]
[403978229,1769702434233,-150.0,0.00042402,30]
[403978230,1769702434282,-164.39618604,0.00042408,30]
[403978231,1769702434332,-281.5429256,0.00042408,30]
[403978232,1769702434382,-231.32130108,0.00042411,30]
[403978233,1769702434432,-150.0,0.0004242,30]
[403978234,1769702434482,-150.0,0.00042423,30]
[403978235,1769702434532,-500.0,0.00042438,120]
[403978236,1769702434581,-150.0,0.00042444,30]
[403978237,1769702434630,-164.39618604,0.00042453,30]
[403978238,1769702434677,-281.5429256,0.00042453,30]
[403978239,1769702434726,-1200.0,0.00042455,60]
[403978240,1769702434782,-150.0,0.00042459,30]
[403978241,1769702434831,-9212.77,0.00042465,120]
[403978242,1769702434879,-150.0,0.00042477,30]
[403978243,1769702434928,-150.0,0.00042477,30]
[403978244,1769702434975,-150.0,0.00042477,30]
[403978245,1769702435024,-164.78472533,0.0004248,120]
[403978246,1769702435079,-150.0,0.00042481,30]
[403978247,1769702435126,-164.39618604,0.00042497,30]
[403978248,1769702435174,-281.5429256,0.00042497,30]
[403978249,1769702435219,-253.69185516,0.000425,120]
[403978250,1769702435267,-151.0,0.000425,120]
[403978251,1769702435312,-22715.83,0.000425,90]
[403978252,1769702435359,-208.85,0.000425,120]
[403978253,1769702435406,-199.999999,0.000425,120]
[403978254,1769702435460,-150.0,0.00042504,30]
[403978255,1769702435507,-150.0,0.00042516,30]
[403978256,1769702435553,-150.0,0.00042533,30]
[403978257,1769702435601,-150.0,0.00042539,30]
[403978258,1769702435647,-164.39618604,0.00042541,30]
[403978259,1769702435699,-281.5429256,0.00042541,30]
[403978260,1769702435749,-150.0,0.00042561,120]
[403978261,1769702435798,-150.0,0.00042564,30]
[403978262,1769702435850,-150.0,0.00042573,30]
[403978263,1769702435898,-500.0,0.00042575,120]
[403978264,1769702435948,-231.32130108,0.00042575,30]
[403978265,1769702435996,-164.39618604,0.00042586,30]
[403978266,1769702436404,-281.5429256,0.00042586,30]
[403978267,1769702436452,-150.0,0.00042589,30]
[403978268,1769702436496,-150.0,0.00042598,30]
[403978269,1769702436541,-5000.0,0.000426,90]
[403978270,1769702436587,-5000.0,0.000426,90]
[403978271,1769702436634,-5000.0,0.000426,90]
[403978272,1769702436688,-3286.0,0.000426,90]
[403978273,1769702436739,-150.0,0.00042608,30]
[403978274,1769702436786,-150.0,0.00042624,30]
[403978275,1769702436832,-150.0,0.0004263,30]
[403978276,1769702436878,-150.0,0.0004263,30]
[403978277,1769702436925,-164.39618604,0.0004263,30]
[403978278,1769702436973,-281.5429256,0.0004263,30]
[403978279,1769702437022,-150.0,0.00042645,30]
[403978280,1769702437069,-150.0,0.00042645,30]
[403978281,1769702437118,-150.0,0.00042646,30]
[403978282,1769702437170,-1005.31410282,0.00042646,30]
[403978283,1769702437221,-150.0,0.00042646,30]
[403978284,1769702437273,-6543.61438304,0.00042646,30]
[403978285,1769702437324,-150.0,0.00042646,30]
[403978286,1769702437373,-700.09865926,0.00042646,30]
[403978287,1769702437421,-30000.0,0.0004265,120]
[403978288,1769702437468,-150.0,0.00042656,30]
[403978289,1769702437515,-164.39618604,0.00042674,30]
[403978290,1769702437562,-281.5429256,0.00042674,30]
[403978291,1769702437608,-150.0,0.00042684,30]
[403978292,1769702437657,-150.0,0.00042687,30]
[403978293,1769702437709,-150.0,0.00042701,30]
[403978294,1769702437756,-500.0,0.00042712,120]
[403978295,1769702437804,-150.0,0.00042715,30]
[403978296,1769702437854,-164.39618604,0.00042718,30]
[403978297,1769702437905,-281.5429256,0.00042718,30]
[403978298,1769702437958,-600.0,0.00042729,60]
[403978299,1769702438008,-231.32130108,0.0004274,30]
[403978300,1769702438059,-150.0,0.00042744,30]
[403978301,1769702438111,-150.0,0.00042744,30]
[403978302,1769702438163,-151.0,0.00042745,120]
[403978303,1769702438219,-1200.0,0.00042748,31]
[403978304,1769702438270,-31000.0,0.0004275,120]
[403978305,1769702438325,-20391.0,0.0004275,120]
[403978306,1769702438375,-150.0,0.00042757,30]
[403978307,1769702438433,-164.39618604,0.00042763,30]
[403978308,1769702438482,-281.5429256,0.00042763,30]
[403978309,1769702438535,-823.58452698,0.00042766,30]
[403978310,1769702438587,-150.0,0.00042773,30]
[403978311,1769702438635,-150.95,0.00042784,30]
[403978312,1769702438684,-1006.05,0.000428,120]
[403978313,1769702438732,-150.0,0.00042801,30]
[403978314,1769702438782,-150.0,0.00042804,30]
[403978315,1769702438831,-164.39618604,0.00042807,30]
[403978316,1769702438881,-281.5429256,0.00042807,30]
[403978317,1769702438930,-150.0,0.00042814,30]
[403978318,1769702438979,-150.0,0.00042814,30]
[403978319,1769702439029,-150.0,0.00042814,30]
[403978320,1769702439084,-150.0,0.00042832,30]
[403978321,1769702439135,-150.0,0.00042847,120]
[403978322,1769702439184,-500.0,0.00042849,120]
[403978323,1769702439234,-34889.67780963,0.0004285,120]
[403978324,1769702439284,-164.39618604,0.00042851,30]
[403978325,1769702439334,-281.5429256,0.00042851,30]
[403978326,1769702439386,-150.0,0.00042851,30]
[403978327,1769702439439,-150.0,0.00042857,30]
[403978328,1769702439495,-150.0,0.00042864,30]
[403978329,1769702439545,-150.0,0.0004287,30]
[403978330,1769702439594,-1064.20814217,0.0004287,120]
[403978331,1769702439645,-500.0,0.00042876,120]
[403978332,1769702439697,-500.0,0.00042876,120]
[403978333,1769702439752,-500.0,0.00042876,120]
[403978334,1769702439802,-500.0,0.00042876,120]
[403978335,1769702439850,-500.0,0.00042876,120]
[403978336,1769702439900,-500.0,0.00042876,120]
[403978337,1769702439947,-500.0,0.00042876,120]
[403978338,1769702439995,-500.0,0.00042876,120]
[403978339,1769702440042,-500.0,0.00042876,120]
[403978340,1769702440088,-543.54812132,0.00042876,120]
[403978341,1769702440138,-150.0,0.0004289,30]
[403978342,1769702440185,-164.39618604,0.00042895,30]
[403978343,1769702440232,-281.5429256,0.00042895,30]
[403978344,1769702440277,-2622.67019593,0.000429,120]
[403978345,1769702440324,-1011.59120427,0.000429,120]
[403978346,1769702440725,-4296.0,0.000429,120]
[403978347,1769702440774,-231.32130108,0.00042904,30]
[403978348,1769702440821,-150.0,0.00042914,30]
[403978349,1769702440869,-150.0,0.00042924,30]
[403978350,1769702440916,-150.0,0.00042926,30]
[403978351,1769702440964,-164.39618604,0.0004294,30]
[403978352,1769702441012,-281.5429256,0.0004294,30]
[403978353,1769702441058,-150.0,0.00042948,30]
[403978354,1769702441104,-150.0,0.00042948,30]
[403978355,1769702441148,-211.0,0.0004295,30]
[403978356,1769702441195,-300.0,0.00042959,90]
[403978357,1769702441242,-150.0,0.00042966,120]
[403978358,1769702441288,-150.0,0.00042971,30]
[403978359,1769702441334,-150.0,0.00042982,30]
[403978360,1769702441382,-150.0,0.00042982,30]
[403978361,1769702441429,-164.39618604,0.00042984,30]
[403978362,1769702441477,-281.5429256,0.00042984,30]
[403978363,1769702441525,-150.0,0.00042985,30]
[403978364,1769702441576,-500.0,0.00042986,120]
[403978365,1769702441622,-752.10404416,0.00042998,120]
[403978366,1769702441671,-500.0,0.00043,120]
[403978367,1769702441717,-251.34477617,0.00043,120]
[403978368,1769702441766,-1045.72749192,0.00043,120]
[403978369,1769702441813,-1021.7988038,0.00043,120]
[403978370,1769702441859,-1024.55919906,0.00043,120]
[403978371,1769702441906,-151.0,0.00043,120]
[403978372,1769702441955,-203.0313505,0.00043,120]
[403978373,1769702442002,-500.0,0.00043,120]
[403978374,1769702442048,-500.0,0.00043,120]
[403978375,1769702442095,-50000.0,0.00043,120]
[403978376,1769702442142,-49999.99999,0.00043,120]
[403978377,1769702442187,-2000.0,0.00043,120]
[403978378,1769702442233,-274.45,0.00043,33]
[403978379,1769702442278,-5915.6806331,0.00043,120]
[403978380,1769702442324,-160.0,0.00043,30]
[403978381,1769702442372,-253.0,0.00043,41]
[403978382,1769702442419,-1028.0,0.00043,30]
[403978383,1769702442467,-8440.6,0.00043,30]
[403978384,1769702442513,-1200.0,0.00043003,60]
[403978385,1769702442559,-150.0,0.00043007,30]
[403978386,1769702442605,-500.0,0.00043013,120]
[403978387,1769702442652,-500.0,0.00043013,120]
[403978388,1769702442698,-500.0,0.00043013,120]
[403978389,1769702442744,-500.0,0.00043013,120]
[403978390,1769702442791,-500.0,0.00043013,120]
[403978391,1769702442837,-500.0,0.00043013,120]
[403978392,1769702442894,-517.00801714,0.00043013,120]
[403978393,1769702442943,-500.0,0.00043013,120]
[403978394,1769702442991,-500.0,0.00043013,120]
[403978395,1769702443039,-500.0,0.00043013,120]
[403978396,1769702443087,-463.23222048,0.00043013,120]
[403978397,1769702443136,-300.0,0.00043014,120]
[403978398,1769702443183,-300.0,0.00043014,120]
[403978399,1769702443230,-150.0,0.00043028,30]
[403978400,1769702443277,-150.0,0.00043028,30]
[403978401,1769702443327,-164.39618604,0.00043028,30]
[403978402,1769702443376,-281.5429256,0.00043028,30]
[403978403,1769702443426,-150.0,0.00043038,30]
[403978404,1769702443475,-150.0,0.00043045,30]
[403978405,1769702443521,-150.0,0.00043065,30]
[403978406,1769702443576,-231.32130108,0.00043068,30]
[403978407,1769702443628,-300.0,0.00043068,120]
[403978408,1769702443679,-300.0,0.00043068,120]
[403978409,1769702443728,-164.39618604,0.00043072,30]
[403978410,1769702443777,-281.5429256,0.00043072,30]
[403978411,1769702443828,-150.0,0.00043085,30]
[403978412,1769702443876,-150.0,0.00043095,30]
[403978413,1769702443927,-150.0,0.00043095,30]
[403978414,1769702443975,-596.82,0.000431,120]
[403978415,1769702444028,-1535.45195159,0.000431,120]
[403978416,1769702444077,-151.0,0.000431,120]
[403978417,1769702444128,-150.0,0.00043105,30]
[403978418,1769702444181,-238.60500159,0.00043109,120]
[403978419,1769702444231,-164.39618604,0.00043117,30]
[403978420,1769702444286,-281.5429256,0.00043117,30]
[403978421,1769702444338,-500.0,0.00043123,120]
[403978422,1769702444387,-150.0,0.00043124,30]
[403978423,1769702444439,-150.0,0.00043142,30]
[403978424,1769702444489,-150.0,0.00043151,30]
[403978425,1769702444542,-150.0,0.00043151,30]
[403978426,1769702445001,-150.0,0.00043151,30]
[403978427,1769702445051,-164.39618604,0.00043161,30]
[403978428,1769702445100,-281.5429256,0.00043161,30]
[403978429,1769702445153,-150.0,0.00043165,30]
[403978430,1769702445201,-150.0,0.00043182,30]
[403978431,1769702445248,-150.0,0.00043199,30]
[403978432,1769702445295,-613.06294134,0.000432,30]
[403978433,1769702445343,-158.64,0.000432,63]
[403978434,1769702445393,-159.9,0.000432,63]
[403978435,1769702445440,-164.39618604,0.00043205,30]
[403978436,1769702445490,-281.5429256,0.00043205,30]
[403978437,1769702445539,-150.0,0.00043207,30]
[403978438,1769702445587,-275.4294,0.0004322,30]
[403978439,1769702445634,-150.0,0.00043225,30]
[403978440,1769702445682,-30000.0,0.00043235,120]
[403978441,1769702445735,-150.0,0.00043241,30]
[403978442,1769702445785,-30000.0,0.00043245,120]
[403978443,1769702445835,-164.39618604,0.0004325,30]
[403978444,1769702445885,-281.5429256,0.0004325,30]
[403978445,1769702445947,-20000.0,0.00043255,120]
[403978446,1769702445998,-150.0,0.00043256,30]
[403978447,1769702446049,-500.0,0.0004326,120]
[403978448,1769702446098,-150.0,0.00043263,30]
[403978449,1769702446148,-23506.73,0.00043265,120]
[403978450,1769702446197,-600.0,0.00043277,60]
[403978451,1769702446244,-500.0,0.00043277,60]
[403978452,1769702446291,-5994.37370654,0.0004328,120]
[403978453,1769702446340,-151.0,0.00043284,120]
[403978454,1769702446390,-151.0,0.00043284,120]
[403978455,1769702446439,-151.0,0.00043284,120]
[403978456,1769702446488,-151.0,0.00043284,120]
[403978457,1769702446538,-151.0,0.00043284,120]
[403978458,1769702446598,-151.0,0.00043284,120]
[403978459,1769702446647,-151.0,0.00043284,120]
[403978460,1769702446697,-151.0,0.00043284,120]
[403978461,1769702446749,-151.0,0.00043284,120]
[403978462,1769702446798,-151.0,0.00043284,120]
[403978463,1769702446848,-167.7962646,0.00043284,120]
[403978464,1769702446899,-150.0,0.00043285,30]
[403978465,1769702446950,-151.0,0.00043287,60]
[403978466,1769702446999,-1878.87682022,0.00043287,120]
[403978467,1769702447048,-10000.0,0.00043287,120]
[403978468,1769702447097,-1000.0,0.00043287,120]
[403978469,1769702447147,-502.54,0.00043287,120]
[403978470,1769702447197,-719.66,0.00043287,120]
[403978471,1769702447244,-719.66,0.00043287,120]
[403978472,1769702447294,-719.66,0.00043287,120]
[403978473,1769702447344,-719.66,0.00043287,120]
[403978474,1769702447395,-719.66,0.00043287,120]
[403978475,1769702447444,-719.66,0.00043287,120]
[403978476,1769702447493,-719.66,0.00043287,120]
[403978477,1769702447542,-719.66,0.00043287,120]
[403978478,1769702447593,-719.8774209,0.00043287,120]
[403978479,1769702447640,-500.0,0.00043287,120]
[403978480,1769702447688,-500.0,0.00043287,120]
[403978481,1769702447736,-504.2025984,0.00043287,120]
[403978482,1769702447784,-500.0,0.00043287,120]
[403978483,1769702447834,-500.0,0.00043287,120]
[403978484,1769702447885,-500.0,0.00043287,120]
[403978485,1769702447935,-500.0,0.00043287,120]
[403978486,1769702447983,-524.1286246,0.00043287,120]
[403978487,1769702448029,-500.0,0.00043287,120]
[403978488,1769702448076,-500.0,0.00043287,120]
[403978489,1769702448123,-500.0,0.00043287,120]
[403978490,1769702448170,-359.68878958,0.00043287,120]
[403978491,1769702448218,-500.0,0.00043287,120]
[403978492,1769702448264,-500.0,0.00043287,120]
[403978493,1769702448311,-341.05929778,0.00043287,120]
[403978494,1769702448358,-500.0,0.00043287,120]
[403978495,1769702448410,-515.56963424,0.00043287,120]
[403978496,1769702448460,-500.0,0.00043287,120]
[403978497,1769702448512,-500.0,0.00043287,120]
[403978498,1769702448563,-500.0,0.00043287,120]
[403978499,1769702448614,-500.0,0.00043287,120]
[403978500,1769702448662,-500.0,0.00043287,120]
[403978501,1769702448714,-599.76521683,0.00043287,120]
[403978502,1769702448763,-500.0,0.00043287,30]
[403978503,1769702448813,-500.0,0.00043287,30]
[403978504,1769702448862,-500.0,0.00043287,30]
[403978505,1769702448911,-537.7955876,0.00043287,30]
[403978506,1769702449378,-500.0,0.00043287,120]
[403978507,1769702449430,-500.0,0.00043287,120]
[403978508,1769702449480,-500.0,0.00043287,120]
[403978509,1769702449531,-363.54213383,0.00043287,120]
[403978510,1769702449589,-500.0,0.00043287,120]
[403978511,1769702449637,-587.22306324,0.00043287,120]
[403978512,1769702449685,-500.0,0.00043287,120]
[403978513,1769702449733,-500.0,0.00043287,120]
[403978514,1769702449780,-500.0,0.00043287,120]
[403978515,1769702449829,-500.0,0.00043287,120]
[403978516,1769702449877,-563.33803266,0.00043287,120]
[403978517,1769702449925,-500.0,0.00043287,120]
[403978518,1769702449974,-500.0,0.00043287,120]
[403978519,1769702450026,-547.15076758,0.00043287,120]
[403978520,1769702450072,-500.0,0.00043287,120]
[403978521,1769702450118,-621.04656625,0.00043287,120]
[403978522,1769702450165,-500.0,0.00043287,120]
[403978523,1769702450215,-500.0,0.00043287,120]
[403978524,1769702450261,-500.0,0.00043287,120]
[403978525,1769702450306,-500.0,0.00043287,120]
[403978526,1769702450353,-500.0,0.00043287,120]
[403978527,1769702450414,-500.0,0.00043287,120]
[403978528,1769702450467,-500.0,0.00043287,120]
[403978529,1769702450516,-500.0,0.00043287,120]
[403978530,1769702450564,-367.94470553,0.00043287,120]
[403978531,1769702450610,-500.0,0.00043287,120]
[403978532,1769702450656,-500.0,0.00043287,120]
[403978533,1769702450704,-500.0,0.00043287,120]
[403978534,1769702450752,-500.0,0.00043287,120]
[403978535,1769702450799,-500.0,0.00043287,120]
[403978536,1769702450848,-606.31058485,0.00043287,120]
[403978537,1769702450894,-500.0,0.00043287,120]
[403978538,1769702450940,-500.0,0.00043287,120]
[403978539,1769702450986,-506.54930758,0.00043287,120]
[403978540,1769702451033,-500.0,0.00043287,120]
[403978541,1769702451082,-496.68964483,0.00043287,120]
[403978542,1769702451128,-500.0,0.00043287,120]
[403978543,1769702451177,-529.56364808,0.00043287,120]
[403978544,1769702451225,-500.0,0.00043287,120]
[403978545,1769702451272,-500.0,0.00043287,120]
[403978546,1769702451318,-532.11061224,0.00043287,120]
[403978547,1769702451365,-500.0,0.00043287,120]
[403978548,1769702451414,-500.0,0.00043287,120]
[403978549,1769702451463,-500.0,0.00043287,120]
[403978550,1769702451511,-500.0,0.00043287,120]
[403978551,1769702451557,-500.0,0.00043287,120]
[403978552,1769702451603,-561.65666659,0.00043287,120]
[403978553,1769702451652,-500.0,0.00043287,120]
[403978555,1769702451698,-500.0,0.00043287,120]
[403978556,1769702451750,-500.0,0.00043287,120]
[403978557,1769702451797,-500.0,0.00043287,120]
[403978559,1769702451844,-500.0,0.00043287,120]
[403978560,1769702451890,-500.0,0.00043287,120]
[403978561,1769702451937,-500.0,0.00043287,120]
[403978562,1769702451984,-500.0,0.00043287,120]
[403978564,1769702452030,-500.0,0.00043287,120]
[403978565,1769702452077,-500.0,0.00043287,120]
[403978566,1769702452122,-500.0,0.00043287,120]
[403978568,1769702452170,-500.0,0.00043287,120]
[403978569,1769702452216,-500.0,0.00043287,120]
[403978570,1769702452261,-500.0,0.00043287,120]
[403978571,1769702452308,-500.0,0.00043287,120]
[403978572,1769702452353,-500.0,0.00043287,120]
[403978573,1769702452399,-500.0,0.00043287,120]
[403978574,1769702452444,-500.0,0.00043287,120]
[403978575,1769702452493,-500.0,0.00043287,120]
[403978576,1769702452545,-500.0,0.00043287,120]
[403978577,1769702452595,-500.0,0.00043287,120]
[403978578,1769702452643,-500.0,0.00043287,120]
[403978579,1769702452690,-500.0,0.00043287,120]
[403978580,1769702452737,-500.0,0.00043287,120]
[403978581,1769702452783,-500.0,0.00043287,120]
[403978582,1769702452828,-500.0,0.00043287,120]
[403978583,1769702452872,-519.66910508,0.00043287,120]
[403978584,1769702452916,-500.0,0.00043287,120]
[403978585,1769702452965,-500.0,0.00043287,120]
[403978586,1769702453011,-500.0,0.00043287,120]
[403978587,1769702453058,-500.0,0.00043287,120]
[403978588,1769702453106,-221.47081938,0.00043287,120]
[403978589,1769702453152,-500.0,0.00043287,120]
[403978590,1769702453472,-500.0,0.00043287,120]
[403978591,1769702453527,-500.0,0.00043287,120]
[403978592,1769702453580,-500.0,0.00043287,120]
[403978593,1769702453626,-500.0,0.00043287,120]
[403978594,1769702453673,-236.9,0.00043287,120]
[403978595,1769702453724,-508.4306384,0.00043287,120]
[403978596,1769702453773,-500.0,0.00043287,120]
[403978597,1769702453824,-500.0,0.00043287,120]
[403978598,1769702453872,-500.0,0.00043287,120]
[403978599,1769702453923,-500.0,0.00043287,120]
[403978600,1769702453979,-500.0,0.00043287,120]
[403978601,1769702454028,-369.40467721,0.00043287,120]
[403978602,1769702454077,-500.0,0.00043287,120]
[403978603,1769702454126,-500.0,0.00043287,120]
[403978604,1769702454173,-500.0,0.00043287,120]
[403978605,1769702454225,-500.0,0.00043287,120]
[403978606,1769702454272,-500.0,0.00043287,120]
[403978607,1769702454319,-500.0,0.00043287,120]
[403978608,1769702454365,-500.0,0.00043287,120]
[403978609,1769702454411,-500.0,0.00043287,120]
[403978610,1769702454460,-500.0,0.00043287,120]
[403978611,1769702454509,-500.0,0.00043287,120]
[403978612,1769702454555,-500.0,0.00043287,120]
[403978614,1769702454604,-500.0,0.00043287,120]
[403978615,1769702454657,-502.43626472,0.00043287,120]
[403978616,1769702454706,-500.0,0.00043287,120]
[403978618,1769702454754,-500.0,0.00043287,120]
[403978619,1769702454803,-500.0,0.00043287,120]
[403978620,1769702454851,-500.0,0.00043287,120]
[403978621,1769702454898,-500.0,0.00043287,120]
[403978622,1769702454945,-500.0,0.00043287,120]
[403978623,1769702454998,-564.85219127,0.00043287,120]
[403978624,1769702455060,-500.0,0.00043287,120]
[403978625,1769702455107,-500.0,0.00043287,120]
[403978626,1769702455154,-500.0,0.00043287,120]
[403978627,1769702455201,-500.0,0.00043287,120]
[403978628,1769702455247,-500.0,0.00043287,120]
[403978629,1769702455295,-500.0,0.00043287,120]
[403978630,1769702455342,-492.0,0.00043287,120]
[403978631,1769702455396,-500.0,0.00043287,120]
[403978632,1769702455447,-500.0,0.00043287,120]
[403978633,1769702455496,-500.0,0.00043287,120]
[403978634,1769702455545,-500.0,0.00043287,120]
[403978635,1769702455593,-500.0,0.00043287,120]
[403978636,1769702455641,-500.0,0.00043287,120]
[403978637,1769702455692,-362.51791796,0.00043287,120]
[403978638,1769702455740,-500.0,0.00043287,120]
[403978639,1769702455789,-500.0,0.00043287,120]
[403978640,1769702455838,-500.0,0.00043287,120]
[403978641,1769702455887,-640.55575748,0.00043287,120]
[403978642,1769702455935,-500.0,0.00043287,120]
[403978643,1769702455984,-500.0,0.00043287,120]
[403978644,1769702456034,-500.0,0.00043287,120]
[403978645,1769702456087,-500.0,0.00043287,120]
[403978646,1769702456137,-576.41886703,0.00043287,120]
[403978647,1769702456188,-500.0,0.00043287,120]
[403978648,1769702456236,-500.0,0.00043287,120]
[403978649,1769702456285,-500.0,0.00043287,120]
[403978650,1769702456333,-500.0,0.00043287,120]
[403978651,1769702456380,-500.0,0.00043287,120]
[403978652,1769702456428,-500.0,0.00043287,120]
[403978653,1769702456484,-500.0,0.00043287,120]
[403978654,1769702456539,-500.0,0.00043287,120]
[403978655,1769702456592,-500.0,0.00043287,120]
[403978656,1769702456645,-500.0,0.00043287,120]
[403978657,1769702456697,-500.0,0.00043287,120]
[403978658,1769702456747,-500.0,0.00043287,120]
[403978659,1769702456797,-500.0,0.00043287,120]
[403978660,1769702456849,-612.35071598,0.00043287,120]
[403978661,1769702456904,-500.0,0.00043287,120]
[403978662,1769702456956,-527.78110576,0.00043287,120]
[403978663,1769702457008,-504.9425601,0.00043287,120]
[403978664,1769702457055,-500.0,0.00043287,120]
[403978665,1769702457105,-500.0,0.00043287,120]
[403978666,1769702457158,-500.0,0.00043287,120]
[403978667,1769702457209,-500.0,0.00043287,120]
[403978668,1769702457258,-500.0,0.00043287,120]
[403978669,1769702457305,-500.0,0.00043287,120]
[403978670,1769702457353,-500.0,0.00043287,120]
[403978671,1769702457401,-442.18126597,0.00043287,120]
[403978672,1769702457448,-500.0,0.00043287,120]
[403978673,1769702457854,-500.0,0.00043287,120]
[403978674,1769702457905,-500.0,0.00043287,120]
[403978675,1769702457956,-225.95659377,0.00043287,120]
[403978676,1769702458007,-501.47790923,0.00043287,120]
[403978677,1769702458058,-500.0,0.00043287,120]
[403978678,1769702458108,-500.0,0.00043287,120]
[403978679,1769702458163,-500.0,0.00043287,120]